fUST/lending_fUST_20250217
["ID","MTS","AMOUNT","RATE_DAILY","PERIOD"]
[353268624,1739724638441,-501.88941912,8.301e-05,2]
[353268625,1739724638456,-500.0,8.301e-05,2]
[353268626,1739724638472,-35217.25,8.301e-05,2]
[353268627,1739724638488,-500.0,8.301e-05,2]
[353268628,1739724638504,-386.25121483,8.301e-05,2]
[353268629,1739724638519,-2344.7,8.301e-05,2]
[353268630,1739724638533,-500.0,8.301e-05,2]
[353268631,1739724638550,-500.0,8.301e-05,2]
[353268632,1739724638563,-1633.57,8.301e-05,2]
[353268633,1739724638575,-1130.55,8.301e-05,2]
[353268634,1739724638589,-13327.5,8.301e-05,2]
[353268635,1739724638604,-500.0,8.301e-05,2]
[353268636,1739724638618,-500.0,8.301e-05,2]
[353268637,1739724638634,-500.0,8.301e-05,2]
[353268638,1739724638652,-995.55,8.301e-05,2]
[353268639,1739724638664,-2670.47,8.301e-05,2]
[353268640,1739724638676,-901.8,8.301e-05,2]
[353268641,1739724638690,-500.0,8.301e-05,2]
[353268642,1739724638708,-479.39863776,8.301e-05,2]
[353268643,1739724638721,-500.0,8.301e-05,2]
[353268644,1739724638735,-500.0,8.301e-05,2]
[353268645,1739724638750,-500.0,8.301e-05,2]
[353268646,1739724638763,-500.0,8.301e-05,2]
[353268647,1739724638774,-500.0,8.301e-05,2]
[353268648,1739724638789,-1126.94,8.301e-05,2]
[353268649,1739724638805,-500.0,8.301e-05,2]
[353268650,1739724638819,-500.0,8.301e-05,2]
[353268651,1739724638832,-500.0,8.301e-05,2]
[353268652,1739724638845,-1928.16,8.301e-05,2]
[353268653,1739724638858,-500.0,8.301e-05,2]
[353268654,1739724638870,-500.0,8.301e-05,2]
[353268655,1739724638886,-1033.38,8.301e-05,2]
[353268656,1739724638900,-500.0,8.301e-05,2]
[353268657,1739724638914,-500.0,8.301e-05,2]
[353268658,1739724638926,-500.0,8.301e-05,2]
[353268659,1739724638941,-500.0,8.301e-05,2]
[353268660,1739724638954,-5765.34,8.301e-05,2]
[353268661,1739724638966,-774.5,8.301e-05,2]
[353268662,1739724638979,-856.33,8.301e-05,2]
[353268663,1739724638993,-500.0,8.301e-05,2]
[353268664,1739724639005,-500.0,8.301e-05,2]
[353268665,1739724639018,-500.0,8.301e-05,2]
[353268666,1739724639031,-500.0,8.301e-05,2]
[353268667,1739724639043,-319.37966231,8.301e-05,2]
[353268668,1739724639056,-571.78,8.301e-05,2]
[353268669,1739724639070,-501.14182736,8.301e-05,2]
[353268670,1739724639084,-448.90325728,8.301e-05,2]
[353268671,1739724639098,-2459.14,8.301e-05,2]
[353268672,1739724639111,-2577.75,8.301e-05,2]
[353268673,1739724639124,-500.0,8.301e-05,2]
[353268674,1739724639138,-1219.43,8.301e-05,2]
[353268675,1739724639153,-834.19,8.301e-05,2]
[353268676,1739724639166,-371.33958002,8.301e-05,2]
[353268677,1739724639179,-1016.19,8.301e-05,2]
[353268678,1739724639192,-500.0,8.301e-05,2]
[353268679,1739724639204,-500.0,8.301e-05,2]
[353268680,1739724639216,-500.0,8.301e-05,2]
[353268681,1739724639230,-500.0,8.301e-05,2]
[353268682,1739724639242,-500.0,8.301e-05,2]
[353268683,1739724639255,-1941.65,8.301e-05,2]
[353268684,1739724639268,-500.0,8.301e-05,2]
[353268685,1739724639281,-500.0,8.301e-05,2]
[353268686,1739724639294,-862.17,8.301e-05,2]
[353268687,1739724639308,-500.0,8.301e-05,2]
[353268688,1739724639321,-500.0,8.301e-05,2]
[353268689,1739724639334,-2052.16,8.301e-05,2]
[353268690,1739724639347,-1276.29,8.301e-05,2]
[353268691,1739724639359,-500.0,8.301e-05,2]
[353268692,1739724639373,-1415.24,8.301e-05,2]
[353268693,1739724639386,-3613.82,8.301e-05,2]
[353268694,1739724639399,-500.0,8.301e-05,2]
[353268695,1739724639412,-500.0,8.301e-05,2]
[353268696,1739724639425,-500.0,8.301e-05,2]
[353268698,1739724639587,-159.40128589,8.301e-05,2]
[353268699,1739724639597,-500.0,8.301e-05,2]
[353268700,1739724639607,-500.0,8.301e-05,2]
[353268701,1739724639617,-560.32,8.301e-05,2]
[353268702,1739724639627,-500.0,8.301e-05,2]
[353268703,1739724639637,-500.0,8.301e-05,2]
[353268704,1739724639647,-1173.71,8.301e-05,2]
[353268706,1739724639656,-500.0,8.301e-05,2]
[353268708,1739724639665,-500.0,8.301e-05,2]
[353268709,1739724639675,-500.81,8.301e-05,2]
[353268712,1739724639685,-500.0,8.301e-05,2]
[353268713,1739724639694,-500.0,8.301e-05,2]
[353268714,1739724639706,-536.93333212,8.313e-05,2]
[353268715,1739724639715,-500.0,8.313e-05,2]
[353268716,1739724639724,-500.0,8.313e-05,2]
[353268717,1739724639734,-403.72633173,8.313e-05,2]
[353268718,1739724639744,-500.0,8.313e-05,2]
[353268719,1739724639753,-500.0,8.313e-05,2]
[353268720,1739724639762,-536.95109788,8.313e-05,2]
[353268721,1739724639772,-261.4753421,8.313e-05,2]
[353268723,1739724639782,-500.0,8.313e-05,2]
[353268724,1739724639795,-500.0,8.313e-05,2]
[353268725,1739724639804,-500.0,8.313e-05,2]
[353268726,1739724639814,-268.53580579,8.313e-05,2]
[353268728,1739724639823,-500.0,8.313e-05,2]
[353268729,1739724639832,-500.0,8.313e-05,2]
[353268730,1739724639841,-285.08125417,8.313e-05,2]
[353268731,1739724639851,-496.18454822,8.331e-05,2]
[353268732,1739724639860,-358.3363738,8.34e-05,2]
[353268733,1739724639870,-514938.86,8.34e-05,2]
[353268735,1739724639879,-503.60565497,8.354e-05,2]
[353268737,1739724639890,-12811.8288375,8.355e-05,2]
[353268738,1739724639900,-500.0,8.383e-05,2]
[353268739,1739724639910,-500.0,8.383e-05,2]
[353268740,1739724639919,-500.0,8.383e-05,2]
[353268741,1739724639929,-500.0,8.383e-05,2]
[353268742,1739724639938,-500.0,8.383e-05,2]
[353268743,1739724639947,-445.03882441,8.383e-05,2]
[353268744,1739724639957,-500.0,8.383e-05,2]
[353268745,1739724639966,-500.0,8.383e-05,2]
[353268746,1739724639975,-500.0,8.383e-05,2]
[353268748,1739724639985,-500.0,8.383e-05,2]
[353268750,1739724639994,-522.6,8.383e-05,2]
[353268751,1739724640004,-500.0,8.383e-05,2]
[353268753,1739724640014,-500.0,8.383e-05,2]
[353268754,1739724640024,-500.0,8.383e-05,2]
[353268755,1739724640034,-500.0,8.383e-05,2]
[353268757,1739724640043,-554.79,8.383e-05,2]
[353268759,1739724640053,-500.0,8.383e-05,2]
[353268761,1739724640062,-500.0,8.383e-05,2]
[353268762,1739724640072,-500.0,8.383e-05,2]
[353268764,1739724640081,-500.0,8.383e-05,2]
[353268766,1739724640091,-566.08,8.383e-05,2]
[353268768,1739724640102,-500.0,8.383e-05,2]
[353268770,1739724640111,-500.0,8.383e-05,2]
[353268772,1739724640127,-500.0,8.383e-05,2]
[353268773,1739724640139,-502.91356902,8.383e-05,2]
[353268775,1739724640149,-508.54,8.383e-05,2]
[353268777,1739724640158,-500.0,8.383e-05,2]
[353268779,1739724640168,-807.32,8.383e-05,2]
[353268781,1739724640178,-648.14,8.383e-05,2]
[353268782,1739724640187,-1899.52,8.383e-05,2]
[353268783,1739724640197,-366.21379889,8.383e-05,2]
[353268784,1739724640206,-500.0,8.383e-05,2]
[353268785,1739724640216,-500.0,8.383e-05,2]
[353268786,1739724640225,-500.0,8.383e-05,2]
[353268787,1739724640235,-500.0,8.383e-05,2]
[353268788,1739724640244,-753.23,8.383e-05,2]
[353268789,1739724640254,-500.0,8.383e-05,2]
[353268790,1739724640265,-500.0,8.383e-05,2]
[353268791,1739724640274,-271.62,8.383e-05,2]
[353268792,1739724640283,-500.0,8.383e-05,2]
[353268794,1739724640293,-1095.98,8.383e-05,2]
[353268796,1739724640303,-500.0,8.383e-05,2]
[353268797,1739724640313,-500.0,8.383e-05,2]
[353268798,1739724640322,-500.0,8.383e-05,2]
[353268800,1739724640331,-529.8,8.383e-05,2]
[353268801,1739724640341,-519.49,8.383e-05,2]
[353268802,1739724640350,-500.0,8.383e-05,2]
[353268803,1739724640359,-500.0,8.383e-05,2]
[353268804,1739724640368,-500.0,8.383e-05,2]
[353268805,1739724640377,-1158.79,8.383e-05,2]
[353268806,1739724640387,-553.29,8.383e-05,2]
[353268807,1739724640398,-500.0,8.383e-05,2]
[353268808,1739724640407,-521.15,8.383e-05,2]
[353268809,1739724640416,-500.0,8.383e-05,2]
[353268810,1739724640425,-506.88,8.383e-05,2]
[353268811,1739724640435,-607.61,8.383e-05,2]
[353268812,1739724640444,-500.0,8.383e-05,2]
[353268813,1739724640454,-500.0,8.383e-05,2]
[353268814,1739724640463,-500.0,8.383e-05,2]
[353268815,1739724640473,-1008.04,8.383e-05,2]
[353268816,1739724640484,-500.0,8.383e-05,2]
[353268817,1739724640494,-242.50196101,8.383e-05,2]
[353268818,1739724640503,-500.0,8.383e-05,2]
[353268819,1739724640512,-1809.93,8.383e-05,2]
[353268820,1739724640521,-500.0,8.383e-05,2]
[353268821,1739724640531,-191.67532591,8.383e-05,2]
[353268822,1739724640540,-688.13,8.383e-05,2]
[353268823,1739724640549,-500.0,8.383e-05,2]
[353268824,1739724640558,-500.0,8.383e-05,2]
[353268825,1739724640567,-697.19,8.383e-05,2]
[353268826,1739724640576,-500.0,8.383e-05,2]
[353268827,1739724640586,-500.0,8.383e-05,2]
[353268828,1739724640595,-500.0,8.383e-05,2]
[353268829,1739724640605,-500.0,8.383e-05,2]
[353268830,1739724640614,-519.15,8.383e-05,2]
[353268831,1739724640624,-511.474695,8.383e-05,2]
[353268832,1739724640634,-500.0,8.383e-05,2]
[353268833,1739724640644,-500.0,8.383e-05,2]
[353268834,1739724640653,-500.0,8.383e-05,2]
[353268835,1739724640663,-683.09,8.383e-05,2]
[353268836,1739724640672,-500.0,8.383e-05,2]
[353268837,1739724640682,-500.0,8.383e-05,2]
[353268838,1739724640691,-212.33659752,8.383e-05,2]
[353268839,1739724640701,-173.39543918,8.383e-05,2]
[353268840,1739724640710,-500.0,8.383e-05,2]
[353268841,1739724640719,-500.0,8.383e-05,2]
[353268842,1739724640730,-500.0,8.383e-05,2]
[353268843,1739724640739,-14938.91,8.383e-05,2]
[353268844,1739724640748,-500.0,8.383e-05,2]
[353268845,1739724640757,-2987.59,8.383e-05,2]
[353268846,1739724640766,-1504.21,8.383e-05,2]
[353268847,1739724640775,-753.48,8.383e-05,2]
[353268848,1739724640784,-500.0,8.383e-05,2]
[353268849,1739724640798,-500.0,8.383e-05,2]
[353268850,1739724640808,-1192.59,8.383e-05,2]
[353268851,1739724640817,-500.0,8.383e-05,2]
[353268852,1739724640827,-5163.56,8.383e-05,2]
[353268853,1739724640836,-500.0,8.383e-05,2]
[353268854,1739724640846,-35217.25,8.383e-05,2]
[353268855,1739724640855,-506.22015172,8.383e-05,2]
[353268856,1739724640865,-2344.7,8.383e-05,2]
[353268857,1739724640875,-308.61843822,8.383e-05,2]
[353268858,1739724640886,-500.0,8.383e-05,2]
[353268859,1739724640896,-1633.57,8.383e-05,2]
[353268860,1739724640905,-1130.55,8.383e-05,2]
[353268861,1739724640915,-13327.5,8.383e-05,2]
[353268862,1739724640925,-500.0,8.383e-05,2]
[353268863,1739724640935,-500.0,8.383e-05,2]
[353268864,1739724640944,-539.27747744,8.383e-05,2]
[353268865,1739724640953,-2670.47,8.383e-05,2]
[353268866,1739724640963,-995.55,8.383e-05,2]
[353268867,1739724640972,-901.8,8.383e-05,2]
[353268868,1739724640981,-500.0,8.383e-05,2]
[353268869,1739724640990,-500.0,8.383e-05,2]
[353268870,1739724641000,-500.0,8.383e-05,2]
[353268871,1739724641009,-500.0,8.383e-05,2]
[353268872,1739724641019,-1126.94,8.383e-05,2]
[353268873,1739724641028,-1928.16,8.383e-05,2]
[353268874,1739724641037,-500.0,8.383e-05,2]
[353268875,1739724641046,-500.0,8.383e-05,2]
[353268876,1739724641055,-500.0,8.383e-05,2]
[353268877,1739724641064,-1033.38,8.383e-05,2]
[353268878,1739724641074,-500.0,8.383e-05,2]
[353268879,1739724641083,-500.0,8.383e-05,2]
[353268880,1739724641093,-500.0,8.383e-05,2]
[353268881,1739724641103,-5765.34,8.383e-05,2]
[353268882,1739724641112,-774.5,8.383e-05,2]
[353268883,1739724641121,-856.33,8.383e-05,2]
[353268884,1739724641131,-500.0,8.383e-05,2]
[353268885,1739724641140,-500.0,8.383e-05,2]
[353268886,1739724641150,-500.0,8.383e-05,2]
[353268887,1739724641159,-571.78,8.383e-05,2]
[353268888,1739724641168,-2459.14,8.383e-05,2]
[353268889,1739724641178,-2577.75,8.383e-05,2]
[353268890,1739724641187,-1219.43,8.383e-05,2]
[353268891,1739724641196,-834.19,8.383e-05,2]
[353268892,1739724641206,-1016.19,8.383e-05,2]
[353268893,1739724641216,-500.0,8.383e-05,2]
[353268894,1739724641225,-500.0,8.383e-05,2]
[353268895,1739724641234,-500.0,8.383e-05,2]
[353268896,1739724641243,-500.0,8.383e-05,2]
[353268897,1739724641252,-500.0,8.383e-05,2]
[353268898,1739724641262,-1941.65,8.383e-05,2]
[353268899,1739724641271,-500.0,8.383e-05,2]
[353268900,1739724641280,-862.17,8.383e-05,2]
[353268901,1739724641290,-500.0,8.383e-05,2]
[353268902,1739724641299,-2052.16,8.383e-05,2]
[353268903,1739724641309,-1276.29,8.383e-05,2]
[353268904,1739724641318,-419.73504551,8.383e-05,2]
[353268905,1739724641327,-1415.24,8.383e-05,2]
[353268906,1739724641336,-3613.82,8.383e-05,2]
[353268907,1739724641346,-500.0,8.383e-05,2]
[353268908,1739724641355,-500.0,8.383e-05,2]
[353268909,1739724641365,-500.0,8.383e-05,2]
[353268910,1739724641375,-467.13,8.383e-05,2]
[353268911,1739724641387,-281.35114352,8.383e-05,2]
[353268912,1739724641397,-560.32,8.383e-05,2]
[353268913,1739724641406,-500.0,8.383e-05,2]
[353268914,1739724641415,-564.44049603,8.383e-05,2]
[353268915,1739724641425,-1173.71,8.383e-05,2]
[353268916,1739724641434,-500.0,8.383e-05,2]
[353268917,1739724641443,-500.81,8.383e-05,2]
[353268918,1739724641453,-500.0,8.383e-05,2]
[353268919,1739724641462,-500.0,8.465e-05,2]
[353268920,1739724641471,-500.0,8.465e-05,2]
[353268921,1739724641480,-500.0,8.465e-05,2]
[353268922,1739724641490,-522.6,8.465e-05,2]
[353268923,1739724641499,-500.0,8.465e-05,2]
[353268924,1739724641508,-527.87,8.465e-05,2]
[353268925,1739724641518,-500.0,8.465e-05,2]
[353268926,1739724641527,-554.79,8.465e-05,2]
[353268927,1739724641536,-500.0,8.465e-05,2]
[353268928,1739724641545,-500.0,8.465e-05,2]
[353268929,1739724641554,-500.0,8.465e-05,2]
[353268930,1739724641657,-566.08,8.465e-05,2]
[353268931,1739724641667,-500.0,8.465e-05,2]
[353268932,1739724641677,-500.0,8.465e-05,2]
[353268933,1739724641686,-500.0,8.465e-05,2]
[353268934,1739724641696,-508.54,8.465e-05,2]
[353268935,1739724641705,-500.0,8.465e-05,2]
[353268936,1739724641715,-807.32,8.465e-05,2]
[353268937,1739724641724,-648.14,8.465e-05,2]
[353268938,1739724641733,-1899.52,8.465e-05,2]
[353268939,1739724641743,-500.0,8.465e-05,2]
[353268940,1739724641752,-500.0,8.465e-05,2]
[353268941,1739724641763,-500.0,8.465e-05,2]
[353268942,1739724641772,-500.0,8.465e-05,2]
[353268943,1739724641781,-753.23,8.465e-05,2]
[353268944,1739724641791,-500.0,8.465e-05,2]
[353268945,1739724641803,-500.0,8.465e-05,2]
[353268946,1739724641813,-329.42788432,8.465e-05,2]
[353268947,1739724641822,-1095.98,8.465e-05,2]
[353268948,1739724641831,-500.0,8.465e-05,2]
[353268949,1739724641840,-500.0,8.465e-05,2]
[353268950,1739724641849,-500.0,8.465e-05,2]
[353268951,1739724641859,-529.8,8.465e-05,2]
[353268952,1739724641868,-519.49,8.465e-05,2]
[353268953,1739724641877,-500.0,8.465e-05,2]
[353268954,1739724641887,-500.0,8.465e-05,2]
[353268955,1739724641897,-507.42529487,8.465e-05,2]
[353268956,1739724641906,-1158.79,8.465e-05,2]
[353268957,1739724641916,-553.29,8.465e-05,2]
[353268958,1739724641925,-227.4,8.465e-05,2]
[353268959,1739724641935,-521.15,8.465e-05,2]
[353268960,1739724641944,-500.0,8.465e-05,2]
[353268961,1739724641954,-506.88,8.465e-05,2]
[353268962,1739724641964,-607.61,8.465e-05,2]
[353268963,1739724641973,-500.0,8.465e-05,2]
[353268964,1739724641982,-500.0,8.465e-05,2]
[353268965,1739724641991,-500.0,8.465e-05,2]
[353268966,1739724642001,-1008.04,8.465e-05,2]
[353268967,1739724642010,-500.0,8.465e-05,2]
[353268968,1739724642019,-500.0,8.465e-05,2]
[353268969,1739724642028,-1809.93,8.465e-05,2]
[353268970,1739724642037,-500.0,8.465e-05,2]
[353268971,1739724642046,-688.13,8.465e-05,2]
[353268972,1739724642056,-500.0,8.465e-05,2]
[353268973,1739724642066,-500.0,8.465e-05,2]
[353268974,1739724642075,-697.19,8.465e-05,2]
[353268975,1739724642085,-500.0,8.465e-05,2]
[353268976,1739724642095,-500.0,8.465e-05,2]
[353268977,1739724642104,-500.0,8.465e-05,2]
[353268978,1739724642114,-519.15,8.465e-05,2]
[353268979,1739724642123,-525.38353301,8.465e-05,2]
[353268980,1739724642133,-500.0,8.465e-05,2]
[353268981,1739724642143,-500.0,8.465e-05,2]
[353268982,1739724642152,-683.09,8.465e-05,2]
[353268983,1739724642162,-500.0,8.465e-05,2]
[353268984,1739724642171,-500.0,8.465e-05,2]
[353268985,1739724642180,-500.0,8.465e-05,2]
[353268986,1739724642189,-532.03480485,8.465e-05,2]
[353268987,1739724642198,-500.0,8.465e-05,2]
[353268988,1739724642207,-14938.91,8.465e-05,2]
[353268989,1739724642216,-500.0,8.465e-05,2]
[353268990,1739724642226,-2987.59,8.465e-05,2]
[353268991,1739724642235,-1504.21,8.465e-05,2]
[353268992,1739724642245,-753.48,8.465e-05,2]
[353268993,1739724642254,-500.0,8.465e-05,2]
[353268994,1739724642264,-500.0,8.465e-05,2]
[353268995,1739724642273,-1192.59,8.465e-05,2]
[353268996,1739724642282,-500.0,8.465e-05,2]
[353268997,1739724642292,-5163.56,8.465e-05,2]
[353268998,1739724642301,-35217.25,8.465e-05,2]
[353268999,1739724642310,-2344.7,8.465e-05,2]
[353269000,1739724642319,-1633.57,8.465e-05,2]
[353269001,1739724642328,-1130.55,8.465e-05,2]
[353269002,1739724642337,-13327.5,8.465e-05,2]
[353269003,1739724642346,-503.07482528,8.465e-05,2]
[353269004,1739724642356,-500.0,8.465e-05,2]
[353269005,1739724642365,-995.55,8.465e-05,2]
[353269006,1739724642375,-2670.47,8.465e-05,2]
[353269007,1739724642385,-901.8,8.465e-05,2]
[353269008,1739724642394,-500.0,8.465e-05,2]
[353269009,1739724642404,-245.52649207,8.465e-05,2]
[353269010,1739724642413,-500.0,8.465e-05,2]
[353269011,1739724642422,-500.0,8.465e-05,2]
[353269012,1739724642431,-1126.94,8.465e-05,2]
[353269014,1739724642440,-1928.16,8.465e-05,2]
[353269015,1739724642449,-500.0,8.465e-05,2]
[353269016,1739724642458,-500.0,8.465e-05,2]
[353269017,1739724642467,-500.0,8.465e-05,2]
[353269018,1739724642476,-1033.38,8.465e-05,2]
[353269019,1739724642485,-500.0,8.465e-05,2]
[353269020,1739724642494,-500.0,8.465e-05,2]
[353269021,1739724642503,-500.0,8.465e-05,2]
[353269022,1739724642513,-5765.34,8.465e-05,2]
[353269023,1739724642522,-774.5,8.465e-05,2]
[353269024,1739724642531,-856.33,8.465e-05,2]
[353269025,1739724642540,-500.0,8.465e-05,2]
[353269027,1739724642550,-500.0,8.465e-05,2]
[353269029,1739724642559,-571.78,8.465e-05,2]
[353269031,1739724642569,-2459.14,8.465e-05,2]
[353269034,1739724642579,-2577.75,8.465e-05,2]
[353269036,1739724642588,-1219.43,8.465e-05,2]
[353269038,1739724642597,-834.19,8.465e-05,2]
[353269040,1739724642607,-1016.19,8.465e-05,2]
[353269042,1739724642616,-500.0,8.465e-05,2]
[353269044,1739724642625,-500.0,8.465e-05,2]
[353269046,1739724642635,-500.0,8.465e-05,2]
[353269048,1739724642644,-500.0,8.465e-05,2]
[353269051,1739724642653,-500.0,8.465e-05,2]
[353269054,1739724642662,-1941.65,8.465e-05,2]
[353269057,1739724642672,-500.0,8.465e-05,2]
[353269059,1739724642681,-862.17,8.465e-05,2]
[353269061,1739724642689,-2052.16,8.465e-05,2]
[353269063,1739724642699,-1276.29,8.465e-05,2]
[353269066,1739724642708,-3613.82,8.465e-05,2]
[353269068,1739724642717,-1415.24,8.465e-05,2]
[353269070,1739724642726,-500.0,8.465e-05,2]
[353269071,1739724642736,-500.0,8.465e-05,2]
[353269072,1739724642745,-500.0,8.465e-05,2]
[353269073,1739724642754,-560.32,8.465e-05,2]
[353269075,1739724642764,-500.0,8.465e-05,2]
[353269077,1739724642773,-1173.71,8.465e-05,2]
[353269079,1739724642782,-262.66571303,8.465e-05,2]
[353269081,1739724642792,-500.81,8.465e-05,2]
[353269082,1739724642803,-500.0,8.465e-05,2]
[353269084,1739724642813,-505.15640973,8.547e-05,2]
[353269086,1739724642822,-500.0,8.547e-05,2]
[353269087,1739724642831,-522.6,8.547e-05,2]
[353269088,1739724642841,-500.0,8.547e-05,2]
[353269089,1739724642850,-500.0,8.547e-05,2]
[353269090,1739724642860,-554.79,8.547e-05,2]
[353269092,1739724642869,-500.0,8.547e-05,2]
[353269094,1739724642879,-500.0,8.547e-05,2]
[353269095,1739724642889,-500.0,8.547e-05,2]
[353269097,1739724642899,-566.08,8.547e-05,2]
[353269098,1739724642908,-500.0,8.547e-05,2]
[353269099,1739724642916,-500.0,8.547e-05,2]
[353269101,1739724642926,-500.0,8.547e-05,2]
[353269102,1739724642936,-508.54,8.547e-05,2]
[353269103,1739724642946,-505.02632934,8.547e-05,2]
[353269104,1739724642955,-807.32,8.547e-05,2]
[353269105,1739724642965,-648.14,8.547e-05,2]
[353269107,1739724642977,-1899.52,8.547e-05,2]
[353269108,1739724642986,-500.87565422,8.547e-05,2]
[353269110,1739724642995,-500.0,8.547e-05,2]
[353269111,1739724643005,-500.0,8.547e-05,2]
[353269112,1739724643015,-500.0,8.547e-05,2]
[353269113,1739724643025,-753.23,8.547e-05,2]
[353269115,1739724643034,-500.0,8.547e-05,2]
[353269116,1739724643043,-500.0,8.547e-05,2]
[353269117,1739724643053,-1095.98,8.547e-05,2]
[353269118,1739724643063,-500.0,8.547e-05,2]
[353269119,1739724643073,-500.0,8.547e-05,2]
[353269120,1739724643083,-500.0,8.547e-05,2]
[353269121,1739724643093,-529.8,8.547e-05,2]
[353269122,1739724643103,-519.49,8.547e-05,2]
[353269123,1739724643112,-500.0,8.547e-05,2]
[353269124,1739724643122,-500.0,8.547e-05,2]
[353269125,1739724643132,-1158.79,8.547e-05,2]
[353269126,1739724643142,-553.29,8.547e-05,2]
[353269127,1739724643152,-521.15,8.547e-05,2]
[353269128,1739724643162,-504.71221909,8.547e-05,2]
[353269129,1739724643172,-506.88,8.547e-05,2]
[353269130,1739724643181,-607.61,8.547e-05,2]
[353269131,1739724643191,-621.65482523,8.547e-05,2]
[353269132,1739724643201,-500.0,8.547e-05,2]
[353269133,1739724643211,-500.0,8.547e-05,2]
[353269134,1739724643220,-1008.04,8.547e-05,2]
[353269135,1739724643231,-500.0,8.547e-05,2]
[353269136,1739724643240,-500.0,8.547e-05,2]
[353269137,1739724643250,-1809.93,8.547e-05,2]
[353269138,1739724643261,-500.0,8.547e-05,2]
[353269139,1739724643271,-688.13,8.547e-05,2]
[353269140,1739724643280,-500.0,8.547e-05,2]
[353269141,1739724643290,-697.19,8.547e-05,2]
[353269142,1739724643299,-500.0,8.547e-05,2]
[353269143,1739724643309,-500.0,8.547e-05,2]
[353269144,1739724643318,-500.0,8.547e-05,2]
[353269145,1739724643328,-519.15,8.547e-05,2]
[353269146,1739724643337,-500.0,8.547e-05,2]
[353269147,1739724643347,-500.0,8.547e-05,2]
[353269148,1739724643356,-683.09,8.547e-05,2]
[353269149,1739724643365,-500.0,8.547e-05,2]
[353269150,1739724643374,-503.57087519,8.547e-05,2]
[353269151,1739724643384,-500.0,8.547e-05,2]
[353269152,1739724643394,-14938.91,8.547e-05,2]
[353269153,1739724643403,-2987.59,8.547e-05,2]
[353269154,1739724643413,-500.0,8.547e-05,2]
[353269155,1739724643423,-1504.21,8.547e-05,2]
[353269156,1739724643432,-753.48,8.547e-05,2]
[353269157,1739724643441,-500.0,8.547e-05,2]
[353269158,1739724643450,-500.0,8.547e-05,2]
[353269159,1739724643552,-1192.59,8.547e-05,2]
[353269160,1739724643562,-500.0,8.547e-05,2]
[353269161,1739724643571,-5163.56,8.547e-05,2]
[353269162,1739724643581,-35217.25,8.547e-05,2]
[353269163,1739724643591,-2344.7,8.547e-05,2]
[353269164,1739724643600,-1633.57,8.547e-05,2]
[353269165,1739724643609,-1130.55,8.547e-05,2]
[353269166,1739724643618,-13327.5,8.547e-05,2]
[353269167,1739724643627,-500.0,8.547e-05,2]
[353269168,1739724643636,-2670.47,8.547e-05,2]
[353269169,1739724643645,-995.55,8.547e-05,2]
[353269170,1739724643654,-901.8,8.547e-05,2]
[353269171,1739724643663,-500.0,8.547e-05,2]
[353269172,1739724643673,-500.0,8.547e-05,2]
[353269173,1739724643682,-1126.94,8.547e-05,2]
[353269174,1739724643692,-1928.16,8.547e-05,2]
[353269175,1739724643701,-500.0,8.547e-05,2]
[353269176,1739724643710,-500.0,8.547e-05,2]
[353269177,1739724643719,-500.0,8.547e-05,2]
[353269178,1739724643729,-1033.38,8.547e-05,2]
[353269179,1739724643738,-500.0,8.547e-05,2]
[353269180,1739724643747,-306.62239725,8.547e-05,2]
[353269181,1739724643756,-500.0,8.547e-05,2]
[353269182,1739724643766,-5765.34,8.547e-05,2]
[353269183,1739724643775,-774.5,8.547e-05,2]
[353269184,1739724643784,-856.33,8.547e-05,2]
[353269185,1739724643794,-500.0,8.547e-05,2]
[353269186,1739724643806,-500.0,8.547e-05,2]
[353269187,1739724643815,-571.78,8.547e-05,2]
[353269188,1739724643825,-2459.14,8.547e-05,2]
[353269189,1739724643835,-2577.75,8.547e-05,2]